fUSD/lending_fUSD_20260615
["ID","MTS","AMOUNT","RATE_DAILY","PERIOD"]
[425081866,1781471438000,-500.0,0.00013938,2]
[425081833,1781471438000,-521.91,0.00013899,2]
[425081835,1781471438000,-805.16,0.00013899,2]
[425081837,1781471438000,-699.18,0.00013899,2]
[425081838,1781471438000,-699.18,0.00013899,2]
[425081839,1781471438000,-699.18,0.00013899,2]
[425081834,1781471438000,-805.16,0.00013899,2]
[425081841,1781471438000,-500.0,0.00013899,2]
[425081840,1781471438000,-500.0,0.00013899,2]
[425081836,1781471438000,-805.16,0.00013899,2]
[425081842,1781471438000,-500.0,0.00013899,2]
[425081844,1781471438000,-250.0,0.00013899,2]
[425081846,1781471438000,-3000.0,0.00013899,2]
[425081848,1781471438000,-500.0,0.00013899,2]
[425081832,1781471438000,-521.91,0.00013899,2]
[425081917,1781471438000,-500.0,0.00014299,2]
[425081961,1781471438000,-699.18,0.00014299,2]
[425081923,1781471438000,-500.0,0.00014299,2]
[425081983,1781471438000,-521.91,0.00014399,2]
[425081979,1781471438000,-166.66,0.00014379,2]
[425081989,1781471438000,-805.16,0.00014399,2]
[425081994,1781471438000,-500.0,0.00014399,2]
[425081993,1781471438000,-699.18,0.00014399,2]
[425081991,1781471438000,-699.18,0.00014399,2]
[425082000,1781471438000,-500.0,0.00014399,2]
[425082001,1781471438000,-353959.86694801,0.000144,2]
[425082003,1781471438000,-10274.98755929,0.00014404,2]
[425082004,1781471438000,-1995.65332224,0.00014412,2]
[425082002,1781471438000,-4925.2691434,0.00014404,2]
[425082006,1781471438000,-875.12876489,0.00014438,2]
[425082005,1781471438000,-350.0,0.00014433,3]
[425082007,1781471438000,-210.80491,0.0001445,2]
[425082009,1781471438000,-150.99,0.00014504,2]
[425082008,1781471438000,-660.23,0.00014504,2]
[425082012,1781471438000,-287.38861022,0.00014568,2]
[425082010,1781471438000,-350.0,0.00014516,2]
[425082014,1781471438000,-758.42308931,0.00014568,2]
[425082011,1781471438000,-1995.65332224,0.0001453,2]
[425082013,1781471438000,-506.98757369,0.00014568,2]
[425082015,1781471438000,-1026.1647,0.00014568,2]
[425082016,1781471438000,-268.66437836,0.0001459,2]
[425082018,1781471438000,-2000.0,0.000146,2]
[425081921,1781471438000,-500.0,0.00014299,2]
[425081985,1781471438000,-521.91,0.00014399,2]
[425081987,1781471438000,-805.16,0.00014399,2]
[425082017,1781471438000,-875.12876489,0.00014592,2]
[425081977,1781471438000,-500.0,0.00014299,2]
[425081981,1781471438000,-435.77,0.00014383,2]
[425081925,1781471438000,-500.0,0.00014299,2]
[425081926,1781471438000,-257.28934228,0.00014299,2]
[425081929,1781471438000,-521.91,0.00014299,2]
[425081946,1781471438000,-805.16,0.00014299,2]
[425081944,1781471438000,-805.16,0.00014299,2]
[425081940,1781471438000,-805.16,0.00014299,2]
[425081933,1781471438000,-521.91,0.00014299,2]
[425081942,1781471438000,-805.16,0.00014299,2]
[425081931,1781471438000,-521.91,0.00014299,2]
[425081934,1781471438000,-521.91,0.00014299,2]
[425081936,1781471438000,-521.91,0.00014299,2]
[425081948,1781471438000,-805.16,0.00014299,2]
[425081938,1781471438000,-521.91,0.00014299,2]
[425081951,1781471438000,-699.18,0.00014299,2]
[425081950,1781471438000,-805.16,0.00014299,2]
[425081973,1781471438000,-500.0,0.00014299,2]
[425081971,1781471438000,-500.0,0.00014299,2]
[425081957,1781471438000,-699.18,0.00014299,2]
[425081963,1781471438000,-500.0,0.00014299,2]
[425081959,1781471438000,-699.18,0.00014299,2]
[425081953,1781471438000,-699.18,0.00014299,2]
[425081965,1781471438000,-581.8,0.00014299,2]
[425081969,1781471438000,-500.0,0.00014299,2]
[425081967,1781471438000,-500.0,0.00014299,2]
[425081955,1781471438000,-699.18,0.00014299,2]
[425081975,1781471438000,-500.0,0.00014299,2]
[425082049,1781471439000,-375.0,0.00014842,2]
[425082047,1781471439000,-403.0,0.00014835,2]
[425082057,1781471439000,-200.0,0.00014879,2]
[425082048,1781471439000,-375.0,0.00014836,2]
[425082051,1781471439000,-375.0,0.00014848,2]
[425082050,1781471439000,-375.0,0.00014846,2]
[425082053,1781471439000,-375.0,0.00014866,2]
[425082052,1781471439000,-375.0,0.00014859,2]
[425082054,1781471439000,-418.0,0.00014871,2]
[425082055,1781471439000,-375.0,0.00014871,2]
[425082062,1781471439000,-1995.65332224,0.00014885,2]
[425082058,1781471439000,-200.0,0.0001488,2]
[425082061,1781471439000,-5800.0,0.00014883,2]
[425082063,1781471439000,-375.0,0.00014886,2]
[425082059,1781471439000,-200.0,0.0001488,2]
[425082060,1781471439000,-375.0,0.00014881,2]
[425082064,1781471439000,-1841.331,0.00014891,2]
[425082065,1781471439000,-171.955,0.00014891,2]
[425082066,1781471439000,-25000.0,0.00014891,3]
[425082067,1781471439000,-5800.0,0.00014891,2]
[425082045,1781471439000,-403.0,0.00014828,2]
[425082070,1781471439000,-10000.0,0.000149,2]
[425082056,1781471439000,-5800.0,0.00014874,2]
[425082046,1781471439000,-375.0,0.00014829,2]
[425082026,1781471439000,-403.0,0.00014745,2]
[425082044,1781471439000,-326.51305886,0.00014825,2]
[425082069,1781471439000,-10857.04665394,0.000149,2]
[425082019,1781471439000,-1995.65332224,0.00014649,2]
[425082020,1781471439000,-375.0,0.00014712,2]
[425082022,1781471439000,-375.0,0.00014721,2]
[425082021,1781471439000,-375.0,0.00014717,2]
[425082029,1781471439000,-375.0,0.00014748,2]
[425082023,1781471439000,-375.0,0.00014732,2]
[425082027,1781471439000,-875.12876489,0.00014746,2]
[425082025,1781471439000,-375.0,0.00014741,2]
[425082028,1781471439000,-189.0,0.00014746,2]
[425082024,1781471439000,-375.0,0.00014739,2]
[425082030,1781471439000,-403.0,0.00014752,2]
[425082032,1781471439000,-375.0,0.00014765,2]
[425082034,1781471439000,-375.0,0.00014769,2]
[425082033,1781471439000,-1995.65332224,0.00014767,2]
[425082035,1781471439000,-375.0,0.00014772,2]
[425082037,1781471439000,-375.0,0.00014784,2]
[425082039,1781471439000,-375.0,0.00014796,2]
[425082040,1781471439000,-350.0,0.000148,2]
[425082036,1781471439000,-403.0,0.00014775,2]
[425082042,1781471439000,-375.0,0.00014801,2]
[425082041,1781471439000,-2686.0,0.000148,2]
[425082038,1781471439000,-403.0,0.00014792,2]
[425082043,1781471439000,-525.3995,0.00014812,2]
[425082068,1781471439000,-350.0,0.00014894,2]
[425082031,1781471439000,-520.0,0.00014757,2]
[425082073,1781471439000,-5800.0,0.000149,2]
[425082101,1781471439000,-344.0,0.00014945,2]
[425082097,1781471439000,-375.0,0.00014929,2]
[425082103,1781471439000,-1051.48104242,0.00014947,5]
[425082100,1781471439000,-403.0,0.00014941,2]
[425082104,1781471439000,-521.91,0.00014947,2]
[425082106,1781471439000,-521.91,0.00014947,2]
[425082107,1781471439000,-805.16,0.00014947,2]
[425082108,1781471439000,-805.16,0.00014947,2]
[425082105,1781471439000,-521.91,0.00014947,2]
[425082124,1781471439000,-325712.11441162,0.00014948,2]
[425082109,1781471439000,-805.16,0.00014947,2]
[425082113,1781471439000,-699.18,0.00014947,2]
[425082111,1781471439000,-699.18,0.00014947,2]
[425082116,1781471439000,-500.0,0.00014947,2]
[425082118,1781471439000,-500.0,0.00014947,2]
[425082115,1781471439000,-250.0,0.00014947,2]
[425082117,1781471439000,-500.0,0.00014947,2]
[425082120,1781471439000,-500.0,0.00014947,2]
[425082121,1781471439000,-500.0,0.00014947,2]
[425082119,1781471439000,-500.0,0.00014947,2]
[425082122,1781471439000,-500.0,0.00014947,2]
[425082123,1781471439000,-268698.8177523,0.00014948,2]
[425082071,1781471439000,-25000.0,0.000149,3]
[425082102,1781471439000,-403.0,0.00014946,2]
[425082098,1781471439000,-381.0,0.00014935,2]
[425082114,1781471439000,-699.18,0.00014947,2]
[425082096,1781471439000,-375.0,0.00014927,2]
[425082074,1781471439000,-268.66437836,0.000149,2]
[425082075,1781471439000,-875.12876489,0.000149,2]
[425082077,1781471439000,-403.0,0.00014908,2]
[425082078,1781471439000,-375.0,0.00014909,2]
[425082076,1781471439000,-291.74221137,0.00014908,2]
[425082079,1781471439000,-500.0,0.00014911,2]
[425082080,1781471439000,-500.0,0.00014911,2]
[425082081,1781471439000,-902.88,0.00014911,2]
[425082085,1781471439000,-375.0,0.00014915,2]
[425082084,1781471439000,-375.0,0.00014913,2]
[425082091,1781471439000,-500.0,0.00014924,2]
[425082072,1781471439000,-1628.0,0.000149,5]
[425082086,1781471439000,-375.0,0.00014918,2]
[425082088,1781471439000,-375.0,0.00014921,2]
[425082087,1781471439000,-375.0,0.0001492,2]
[425082090,1781471439000,-763.18,0.00014924,2]
[425082089,1781471439000,-375.0,0.00014921,2]
[425082083,1781471439000,-403.0,0.00014912,2]
[425082092,1781471439000,-551.94,0.00014924,2]
[425082093,1781471439000,-500.0,0.00014924,2]
[425082094,1781471439000,-375.0,0.00014926,2]
[425082095,1781471439000,-375.0,0.00014926,2]
[425082082,1781471439000,-677.3,0.00014911,2]
[425082099,1781471439000,-403.0,0.00014939,2]
[425082127,1781471440000,-29999.931705,0.00014948,2]
[425082126,1781471440000,-1201.53902491,0.00014948,2]
[425082125,1781471440000,-2275.75437509,0.00014303,2]
[425082151,1781471442000,-384.78559507,0.00014948,2]
[425082153,1781471442000,-447943.19857192,0.00014948,2]
[425082154,1781471442000,-2365.37165086,0.00014948,2]
[425082152,1781471442000,-4264.6431467,0.00014948,2]
[425082165,1781471445000,-519.26590871,0.000149,2]
[425082166,1781471445000,-2309.90437064,0.00014948,2]
[425082162,1781471445000,-166.66,0.00014242,2]
[425082164,1781471445000,-166.66,0.00014524,2]
[425082163,1781471445000,-2275.75437509,0.0001442,2]
[425082161,1781471445000,-166.66,0.0001396,2]
[425082160,1781471445000,-151.0,0.00013899,2]
[425082158,1781471445000,-166.66,0.00013396,2]
[425082159,1781471445000,-166.66,0.00013678,2]
[425082173,1781471446000,-1636.57749953,0.00014948,2]
[425082167,1781471446000,-166.66,0.00014806,2]
[425082168,1781471446000,-86862.61309887,0.00014948,2]
[425082179,1781471954000,-150.0,0.00012294,2]
[425082180,1781472033000,350.0,0.00012293,2]
[425082187,1781472407000,-219.6233841,0.00012293,2]
[425082189,1781472441000,-269.59404054,0.00012293,2]
[425082188,1781472441000,-280.3766159,0.00012293,2]
[425082202,1781472631000,-150.0,0.00012244,2]
[425082203,1781472631000,-300.0,0.00012294,2]
[425082205,1781472631000,-150.0,0.00012295,2]
[425082195,1781472631000,-500.0,0.00012194,2]
[425082197,1781472631000,-259.31750788,0.00012194,2]
[425082198,1781472631000,-862.94664033,0.00012195,2]
[425082201,1781472631000,-2283.54475967,0.00012195,2]
[425082204,1781472631000,-151.0,0.00012295,2]
[425082196,1781472631000,-595.53838189,0.00012194,2]
[425082209,1781472631000,-150.0,0.00012315,2]
[425082210,1781472631000,-150.0,0.00012395,2]
[425082207,1781472631000,-152.0,0.00012295,2]
[425082206,1781472631000,-151.0,0.00012295,2]
[425082208,1781472631000,-151.0,0.00012295,2]
[425082212,1781472631000,-9763.53455904,0.00012396,2]
[425082211,1781472631000,-500.0,0.00012396,2]
[425082215,1781472631000,-3548.01947987,0.00012396,2]
[425082214,1781472631000,-427.04268193,0.00012396,2]
[425082213,1781472631000,-2560.90121664,0.00012396,2]
[425082222,1781472632000,-150.0,0.00012496,2]
[425082229,1781472632000,-151.0,0.00012496,2]
[425082244,1781472632000,-153.0,0.00012496,2]
[425082248,1781472632000,-151.0,0.00012496,2]
[425082246,1781472632000,-153.0,0.00012496,2]
[425082240,1781472632000,-151.0,0.00012496,2]
[425082226,1781472632000,-151.0,0.00012496,2]
[425082242,1781472632000,-152.0,0.00012496,2]
[425082224,1781472632000,-151.0,0.00012496,2]
[425082237,1781472632000,-151.0,0.00012496,2]
[425082221,1781472632000,-376.61,0.00012429,2]
[425082233,1781472632000,-151.0,0.00012496,2]
[425082235,1781472632000,-151.0,0.00012496,2]
[425082258,1781472632000,-183.95,0.00012546,2]
[425082219,1781472632000,-5152.96484926,0.00012396,2]
[425082231,1781472632000,-151.0,0.00012496,2]
[425082218,1781472632000,-56901.20901326,0.00012396,2]
[425082216,1781472632000,-555.99096684,0.00012395,2]
[425082217,1781472632000,-171.67358165,0.00012395,2]
[425082228,1781472632000,-152.0,0.00012496,2]
[425082262,1781472632000,-250.0,0.0001319,2]
[425082220,1781472632000,-163.68,0.00012417,2]
[425082252,1781472632000,-645.11,0.00012512,2]
[425082250,1781472632000,-151.0,0.00012496,2]
[425082279,1781472632000,-369.92986354,0.00013425,2]
[425082278,1781472632000,-616.0,0.00013425,2]
[425082277,1781472632000,-200.0,0.00013425,2]
[425082275,1781472632000,-547.51177677,0.00013425,2]
[425082276,1781472632000,-68.48822323,0.00013425,2]
[425082269,1781472632000,-616.0,0.00013425,2]
[425082273,1781472632000,-616.0,0.00013425,2]
[425082274,1781472632000,-150.0,0.00013425,2]
[425082264,1781472632000,-1852.42,0.00013271,2]
[425082272,1781472632000,-150.0,0.00013425,2]
[425082271,1781472632000,-616.0,0.00013425,2]
[425082268,1781472632000,-616.0,0.00013425,2]
[425082265,1781472632000,-200.0,0.00013352,2]
[425082266,1781472632000,-6576.79905029,0.00013411,2]
[425082270,1781472632000,-616.0,0.00013425,2]
[425082263,1781472632000,-115135.19,0.00013222,2]
[425082254,1781472632000,-160.0,0.00012529,2]
[425082261,1781472632000,-1971.58,0.0001319,2]
[425082260,1781472632000,-850.01,0.00012576,2]
[425082267,1781472632000,-616.0,0.00013425,2]
[425082292,1781472637000,-616.0,0.00013425,2]
[425082291,1781472637000,-246.07013646,0.00013425,2]
[425082290,1781472637000,-1163.8945882,0.00012947,2]
[425082295,1781472637000,-616.0,0.00013425,2]
[425082299,1781472637000,-616.0,0.00013425,2]
[425082297,1781472637000,-616.0,0.00013425,2]
[425082300,1781472637000,-616.0,0.00013425,2]
[425082298,1781472637000,-616.0,0.00013425,2]
[425082323,1781472638000,-684.0589279,0.00013547,2]
[425082325,1781472638000,-1024.0406,0.00013598,2]
[425082322,1781472638000,-342.1057721,0.00013547,2]
[425082324,1781472638000,-198.21,0.00013564,2]
[425082326,1781472638000,-1529.7078,0.00013598,2]
[425082329,1781472638000,-500.0,0.00013698,2]
[425082333,1781472638000,-2500.0,0.00013699,2]
[425082334,1781472638000,-722.51,0.00013699,2]
[425082336,1781472638000,-500.0,0.00013699,2]
[425082327,1781472638000,-500.0,0.00013698,2]
[425082331,1781472638000,-500.0,0.00013698,2]
[425082338,1781472638000,-500.0,0.00013699,2]
[425082330,1781472638000,-500.0,0.00013698,2]
[425082328,1781472638000,-500.0,0.00013698,2]
[425082321,1781472638000,-758.42308931,0.00013547,2]
[425082337,1781472638000,-338.79450321,0.00013699,2]
[425082335,1781472638000,-200.0,0.00013699,2]
[425082304,1781472638000,-616.0,0.00013425,2]
[425082319,1781472638000,-287.38861022,0.00013547,2]
[425082302,1781472638000,-616.0,0.00013425,2]
[425082306,1781472638000,-616.0,0.00013425,2]
[425082305,1781472638000,-616.0,0.00013425,2]
[425082303,1781472638000,-616.0,0.00013425,2]
[425082301,1781472638000,-616.0,0.00013425,2]
[425082307,1781472638000,-616.0,0.00013425,2]
[425082309,1781472638000,-638.12019549,0.00013425,2]
[425082320,1781472638000,-506.98757369,0.00013547,2]
[425082317,1781472638000,-250.0,0.00013523,2]
[425082310,1781472638000,-879.26,0.00013458,2]
[425082311,1781472638000,-500.0,0.00013484,2]
[425082312,1781472638000,-209.0,0.00013485,2]
[425082316,1781472638000,-219.84,0.00013519,2]
[425082314,1781472638000,-157.35,0.00013507,2]
[425082313,1781472638000,-155.0,0.00013492,2]
[425082315,1781472638000,-1000.0,0.00013518,2]
[425082308,1781472638000,-616.0,0.00013425,2]
[425082332,1781472638000,-500.0,0.00013698,2]
[425082318,1781472638000,-184.24,0.00013545,2]
[425082350,1781472638000,-579.87,0.00013899,2]
[425082367,1781472638000,-500.0,0.00013899,2]
[425082365,1781472638000,-447.7220395,0.00013899,2]
[425082369,1781472638000,-500.0,0.00013899,2]
[425082379,1781472638000,-500.0,0.00013899,2]
[425082368,1781472638000,-500.0,0.00013899,2]
[425082378,1781472638000,-500.0,0.00013899,2]
[425082370,1781472638000,-317.27339362,0.00013899,2]
[425082361,1781472638000,-52.2779605,0.00013899,2]
[425082375,1781472638000,-500.0,0.00013899,2]
[425082371,1781472638000,-550.89393904,0.00013899,2]
[425082372,1781472638000,-500.0,0.00013899,2]
[425082374,1781472638000,-500.0,0.00013899,2]
[425082373,1781472638000,-500.0,0.00013899,2]
[425082376,1781472638000,-500.0,0.00013899,2]
[425082380,1781472638000,-147.45753724,0.00013899,2]
[425082340,1781472638000,-500.0,0.00013815,2]
[425082377,1781472638000,-500.0,0.00013899,2]
[425082352,1781472638000,-500.0,0.00013899,2]
[425082366,1781472638000,-500.0,0.00013899,2]
[425082357,1781472638000,-500.0,0.00013899,2]
[425082348,1781472638000,-500.0,0.00013899,2]
[425082341,1781472638000,-168.27,0.00013874,2]
[425082339,1781472638000,-16519.67,0.00013735,2]
[425082342,1781472638000,-500.0,0.00013899,2]
[425082349,1781472638000,-579.87,0.00013899,2]
[425082344,1781472638000,-500.0,0.00013899,2]
[425082360,1781472638000,-500.0,0.00013899,2]
[425082343,1781472638000,-510.79198853,0.00013899,2]
[425082346,1781472638000,-500.0,0.00013899,2]
[425082345,1781472638000,-500.0,0.00013899,2]
[425082351,1781472638000,-579.87,0.00013899,2]
[425082358,1781472638000,-500.0,0.00013899,2]
[425082355,1781472638000,-500.0,0.00013899,2]
[425082354,1781472638000,-500.0,0.00013899,2]
[425082359,1781472638000,-500.0,0.00013899,2]
[425082353,1781472638000,-500.0,0.00013899,2]
[425082356,1781472638000,-500.0,0.00013899,2]
[425082347,1781472638000,-500.0,0.00013899,2]
[425082401,1781472642000,-1166.22,0.00013899,2]
[425082391,1781472642000,-150.0,0.00011829,2]
[425082403,1781472642000,-716.81,0.00013899,2]
[425082402,1781472642000,-716.81,0.00013899,2]
[425082392,1781472642000,-352.54246276,0.00013899,2]
[425082393,1781472642000,-500.0,0.00013899,2]
[425082398,1781472642000,-500.0,0.00013899,2]
[425082399,1781472642000,-1166.22,0.00013899,2]
[425082397,1781472642000,-500.0,0.00013899,2]
[425082395,1781472642000,-500.0,0.00013899,2]
[425082396,1781472642000,-500.0,0.00013899,2]
[425082400,1781472642000,-1166.22,0.00013899,2]
[425082394,1781472642000,-500.0,0.00013899,2]
[425082404,1781472642000,-716.81,0.00013899,2]
[425082438,1781472643000,-500.0,0.00014299,2]
[425082437,1781472643000,-500.0,0.00014299,2]
[425082442,1781472643000,-500.0,0.00014299,2]
[425082443,1781472643000,-500.0,0.00014299,2]
[425082444,1781472643000,-500.0,0.00014299,2]
[425082445,1781472643000,-500.0,0.00014299,2]
[425082440,1781472643000,-500.0,0.00014299,2]
[425082439,1781472643000,-500.0,0.00014299,2]
[425082435,1781472643000,-500.0,0.00014299,2]
[425082429,1781472643000,-500.0,0.00014299,2]
[425082436,1781472643000,-500.0,0.00014299,2]
[425082441,1781472643000,-500.0,0.00014299,2]
[425082449,1781472643000,-500.0,0.00014299,2]
[425082446,1781472643000,-500.0,0.00014299,2]
[425082448,1781472643000,-500.0,0.00014299,2]
[425082450,1781472643000,-500.0,0.00014299,2]
[425082451,1781472643000,-500.0,0.00014299,2]
[425082456,1781472643000,-1166.22,0.00014299,2]
[425082452,1781472643000,-500.0,0.00014299,2]
[425082453,1781472643000,-500.0,0.00014299,2]
[425082454,1781472643000,-500.0,0.00014299,2]
[425082455,1781472643000,-352.57220882,0.00014299,2]
[425082457,1781472643000,-1166.22,0.00014299,2]
[425082430,1781472643000,-500.0,0.00014299,2]
[425082447,1781472643000,-500.0,0.00014299,2]
[425082431,1781472643000,-500.0,0.00014299,2]
[425082411,1781472643000,-645.11,0.00014076,2]
[425082428,1781472643000,-500.0,0.00014299,2]
[425082459,1781472643000,-1166.22,0.00014299,2]
[425082415,1781472643000,-500.0,0.00014299,2]
[425082410,1781472643000,-150.0,0.00014044,2]
[425082405,1781472643000,-500.0,0.00013989,2]
[425082413,1781472643000,-500.0,0.00014299,2]
[425082409,1781472643000,-2000.0,0.00014001,2]
[425082412,1781472643000,-500.0,0.00014298,2]
[425082414,1781472643000,-321.14602171,0.00014299,2]
[425082407,1781472643000,-1166.22,0.00013989,2]
[425082406,1781472643000,-500.0,0.00013989,2]
[425082408,1781472643000,-716.81,0.00013989,2]
[425082417,1781472643000,-579.87,0.00014299,2]
[425082422,1781472643000,-579.87,0.00014299,2]
[425082419,1781472643000,-579.87,0.00014299,2]
[425082418,1781472643000,-579.87,0.00014299,2]
[425082416,1781472643000,-500.0,0.00014299,2]
[425082421,1781472643000,-579.87,0.00014299,2]
[425082420,1781472643000,-579.87,0.00014299,2]
[425082424,1781472643000,-500.0,0.00014299,2]
[425082432,1781472643000,-500.0,0.00014299,2]
[425082433,1781472643000,-500.0,0.00014299,2]
[425082423,1781472643000,-500.0,0.00014299,2]
[425082426,1781472643000,-500.0,0.00014299,2]
[425082434,1781472643000,-500.0,0.00014299,2]
[425082425,1781472643000,-500.0,0.00014299,2]
[425082427,1781472643000,-500.0,0.00014299,2]
[425082460,1781472643000,-1166.22,0.00014299,2]
[425082464,1781472643000,-716.81,0.00014299,2]
[425082516,1781472643000,-377.0,0.00014741,2]
[425082497,1781472643000,-10274.98755929,0.00014587,2]
[425082508,1781472643000,-375.0,0.00014721,2]
[425082496,1781472643000,-4925.2691434,0.00014587,2]
[425082510,1781472643000,-375.0,0.00014728,2]
[425082507,1781472643000,-437.56438244,0.0001472,2]
[425082509,1781472643000,-375.0,0.00014725,2]
[425082505,1781472643000,-375.0,0.0001472,2]
[425082499,1781472643000,-437.56438244,0.00014684,2]
[425082501,1781472643000,-375.0,0.00014699,2]
[425082500,1781472643000,-375.0,0.00014688,2]
[425082502,1781472643000,-375.0,0.00014705,2]
[425082503,1781472643000,-375.0,0.00014718,2]
[425082512,1781472643000,-375.0,0.00014735,2]
[425082514,1781472643000,-375.0,0.00014736,2]
[425082520,1781472643000,-271.22308674,0.0001475,2]
[425082521,1781472643000,-1318.77048409,0.0001475,2]
[425082511,1781472643000,-403.0,0.00014732,2]
[425082522,1781472643000,-437.56438244,0.00014756,2]
[425082513,1781472643000,-377.0,0.00014736,2]
[425082519,1781472643000,-296.61027198,0.0001475,2]
[425082517,1781472643000,-375.0,0.00014741,2]
[425082515,1781472643000,-462.0,0.00014737,2]
[425082518,1781472643000,-2000.0,0.00014748,2]
[425082465,1781472643000,-716.81,0.00014299,2]
[425082523,1781472643000,-419.0,0.00014757,2]
[425082494,1781472643000,-210.80491,0.00014517,2]
[425082493,1781472643000,-150.99,0.00014504,2]
[425082498,1781472643000,-437.56438248,0.00014648,2]
[425082492,1781472643000,-660.23,0.00014504,2]
[425082461,1781472643000,-1166.22,0.00014299,2]
[425082485,1781472643000,-787.0,0.00014452,2]
[425082468,1781472643000,-579.87,0.00014399,2]
[425082458,1781472643000,-1166.22,0.00014299,2]
[425082466,1781472643000,-716.81,0.00014299,2]
[425082462,1781472643000,-716.81,0.00014299,2]
[425082463,1781472643000,-716.81,0.00014299,2]
[425082470,1781472643000,-500.0,0.00014399,2]
[425082482,1781472643000,-716.81,0.00014399,2]
[425082469,1781472643000,-579.87,0.00014399,2]
[425082483,1781472643000,-716.81,0.00014399,2]
[425082481,1781472643000,-1166.22,0.00014399,2]
[425082473,1781472643000,-500.0,0.00014399,2]
[425082467,1781472643000,-716.81,0.00014299,2]
[425082472,1781472643000,-500.0,0.00014399,2]
[425082471,1781472643000,-500.0,0.00014399,2]
[425082491,1781472643000,-3578.18,0.00014497,2]
[425082487,1781472643000,-787.0,0.00014452,2]
[425082495,1781472643000,-350.0,0.00014561,2]
[425082486,1781472643000,-787.0,0.00014452,2]
[425082489,1781472643000,-927.242,0.00014452,2]
[425082490,1781472643000,-263.0433,0.00014474,2]
[425082488,1781472643000,-787.0,0.00014452,2]
[425082479,1781472643000,-1166.22,0.00014399,2]
[425082477,1781472643000,-500.0,0.00014399,2]
[425082475,1781472643000,-500.0,0.00014399,2]
[425082484,1781472643000,-787.0,0.00014452,2]
[425082560,1781472644000,-500.0,0.00014847,2]
[425082566,1781472644000,-500.0,0.00014847,2]
[425082561,1781472644000,-500.0,0.00014847,2]
[425082552,1781472644000,-1051.48104242,0.00014847,5]
[425082558,1781472644000,-500.0,0.00014847,2]
[425082550,1781472644000,-375.0,0.00014836,2]
[425082556,1781472644000,-500.0,0.00014847,2]
[425082555,1781472644000,-500.0,0.00014847,2]
[425082557,1781472644000,-500.0,0.00014847,2]
[425082567,1781472644000,-500.0,0.00014847,2]
[425082551,1781472644000,-505.81197487,0.00014837,2]
[425082564,1781472644000,-500.0,0.00014847,2]
[425082568,1781472644000,-500.0,0.00014847,2]
[425082569,1781472644000,-500.0,0.00014847,2]
[425082562,1781472644000,-539.37,0.00014847,2]
[425082565,1781472644000,-500.0,0.00014847,2]
[425082563,1781472644000,-500.0,0.00014847,2]
[425082571,1781472644000,-500.0,0.00014847,2]
[425082581,1781472644000,-637.42,0.00014847,2]
[425082570,1781472644000,-500.0,0.00014847,2]
[425082573,1781472644000,-500.0,0.00014847,2]
[425082574,1781472644000,-239.54885664,0.00014847,2]
[425082572,1781472644000,-500.0,0.00014847,2]